{"text_format":"2","workbook":"xlsx","n_sheets":1,"sheets":["Sheet1"],"not_rendered":{"charts":0,"images":0,"macros":0,"external_links":0,"defined_names":0,"comments":0,"pivot_tables":0},"unopened":[],"bounds":{"document_bytes":16777216,"sheet_cells":100000,"run_cost":"one","rows_first":2000,"rows_last":500,"rows_between":2000,"halvings":0,"cell_chars":16384,"cell_head_chars":4096},"cells_cut":0,"cells_raw":0,"read":"whole","date_system":"1900"}

{"sheet":"Sheet1","index":0,"n_rows":759,"n_cols":6,"rows_kept":759,"cut":false,"hidden":false,"merged":[]}
["Bentiska foraminiferer","Vattentemperatur [°C]","Mg/Ca kvot [mmol/mol]","Plats","Andel som subtraherats från Mg/Ca kvoten efter rengöring [mmol/mol]","Referens"]
["C. neoteretis",0.28000000000000003,1.0780000000000001,"Östra Sibiriska Kontinentalsockeln",null,"Barrientos et al (2018)"]
["C. neoteretis",0.45,1.0900000000000001,"Östra Sibiriska Kontinentalsockeln",null,"Barrientos et al (2018)"]
["C. neoteretis",-0.22,1.1000000000000001,"Östra Sibiriska Kontinentalsockeln",null,"Barrientos et al (2018)"]
["C. neoteretis",0.25,0.97099999999999997,"Östra Sibiriska Kontinentalsockeln",null,"Barrientos et al (2018)"]
["C. neoteretis",0.52,0.98699999999999999,"Östra Sibiriska Kontinentalsockeln",null,"Barrientos et al (2018)"]
["C. neoteretis",-7.0000000000000007E-2,1.169,"Östra Sibiriska Kontinentalsockeln",null,"Barrientos et al (2018)"]
["C. neoteretis",0.74,0.998,"Östra Sibiriska Kontinentalsockeln",null,"Barrientos et al (2018)"]
["C. neoteretis",-0.1,1.04,"Östra Sibiriska Kontinentalsockeln",null,"Barrientos et al (2018)"]
["C. neoteretis",0.91,1.0680000000000001,"Östra Sibiriska Kontinentalsockeln",null,"Barrientos et al (2018)"]
["C. neoteretis",0.69,1.1930000000000001,"Östra Sibiriska Kontinentalsockeln",null,"Barrientos et al (2018)"]
["C. neoteretis",0.02,1.07,"Östra Sibiriska Kontinentalsockeln",null,"Barrientos et al (2018)"]
["C. neoteretis",0.53,1.196,"Östra Sibiriska Kontinentalsockeln",null,"Barrientos et al (2018)"]
["C. neoteretis",0.43,1.0329999999999999,"Östra Sibiriska Kontinentalsockeln",null,"Barrientos et al (2018)"]
["C. neoteretis",0.02,0.91,"Lomonosov Ridge",null,"Barrientos et al (2018)"]
["C. neoteretis",-0.1,0.84199999999999997,"Lomonosov Ridge",null,"Barrientos et al (2018)"]
["C. neoteretis",6.03,1.2410000000000001,"Nordislands kontinentalsockel",null,"Kristjánsdóttir et al (2007)"]
["C. neoteretis",6.04,1.377,"Nordislands kontinentalsockel",null,"Kristjánsdóttir et al (2007)"]
["C. neoteretis",0.22,1,"Nordislands kontinentalsockel",null,"Kristjánsdóttir et al (2007)"]
["C. neoteretis",5.52,1.286,"Nordislands kontinentalsockel",null,"Kristjánsdóttir et al (2007)"]
["C. neoteretis",2.04,0.98699999999999999,"Nordislands kontinentalsockel",null,"Kristjánsdóttir et al (2007)"]
["C. neoteretis",1.58,1.1579999999999999,"Nordislands kontinentalsockel",null,"Kristjánsdóttir et al (2007)"]
["C. neoteretis",6.26,1.355,"Nordislands kontinentalsockel",null,"Kristjánsdóttir et al (2007)"]
["C. neoteretis",6.25,1.379,"Nordislands kontinentalsockel",null,"Kristjánsdóttir et al (2007)"]
["C. neoteretis",0.6,0.92700000000000005,"Nordislands kontinentalsockel",null,"Kristjánsdóttir et al (2007)"]
["C. neoteretis",0.96,0.93300000000000005,"Nordislands kontinentalsockel",null,"Kristjánsdóttir et al (2007)"]
["C. mundulus",1.4,1.7529999999999999,"Vema Channel",null,"Healey et al. (2008)"]
["C. mundulus",1.4,1.956,"Vema Channel",null,"Healey et al. (2008)"]
["C. mundulus",1.45,1.673,"Vema Channel",null,"Healey et al. (2008)"]
["C. mundulus",1.45,1.179,"Vema Channel",null,"Healey et al. (2008)"]
["C. mundulus",2,1.4410466520668472,"Vema Channel",null,"Healey et al. (2008)"]
["C. mundulus",2.1,1.4565969976365267,"Vema Channel",null,"Healey et al. (2008)"]
["C. mundulus",2.4500000000000002,1.7410762931062991,"Vema Channel",null,"Healey et al. (2008)"]
["C. mundulus",2.4500000000000002,1.5734967829974678,"Vema Channel",null,"Healey et al. (2008)"]
["C. mundulus",1.5,1.5620000000000001,"Vema Channel",null,"Healey et al. (2008)"]
["C. mundulus",1.5,1.7769999999999999,"Vema Channel",null,"Healey et al. (2008)"]
["C. mundulus",2.79,2.5559431643053796,"Vema Channel",null,"Healey et al. (2008)"]
["C. mundulus",2.71,2.3592022159793533,"Vema Channel",null,"Healey et al. (2008)"]
["C. mundulus",2.09,2.0532094126137883,"Vema Channel",null,"Healey et al. (2008)"]
["C. mundulus",2.8,2.0874540239388848,"Vema Channel",null,"Healey et al. (2008)"]
["C. mundulus",2.87,1.9772804380525497,"Vema Channel",null,"Healey et al. (2008)"]
["C. mundulus",2.88,2.6154445546160305,"Vema Channel",null,"Healey et al. (2008)"]
["C. mundulus",1,1.2211066248498801,"Sydöstra Indiska Oceanen",null,"Healey et al. (2008)"]
["C. mundulus",1.5,1.1855900053782278,"Sydöstra Indiska Oceanen",null,"Healey et al. (2008)"]
["C. mundulus",2.56,2.1739999999999999,"Andra platser i Atlanten",null,"Healey et al. (2008)"]
["C. mundulus",2.56,2.0699999999999998,"Andra platser i Atlanten",null,"Healey et al. (2008)"]
["C. mundulus",2.56,2.1309999999999998,"Andra platser i Atlanten",null,"Healey et al. (2008)"]
["C. mundulus",14.85,5.47,"Brasilianska bassängen",null,"Raitzsch et al (2008)"]
["C. mundulus",2.11,1.52,"Brasilianska bassängen",null,"Raitzsch et al (2008)"]
["C. mundulus",1.68,0.95,"Brasilianska bassängen",null,"Raitzsch et al (2008)"]
["C. mundulus",0.43,0.52,"Brasilianska bassängen",null,"Raitzsch et al (2008)"]
["C. mundulus",1.53,0.71,"Brasilianska bassängen",null,"Raitzsch et al (2008)"]
["C. mundulus",9,1.88,"Argentinska bassängen",null,"Raitzsch et al (2008)"]
["C. mundulus",3.55,1.1000000000000001,"Argentinska bassängen",null,"Raitzsch et al (2008)"]
["C. mundulus",1.2,0.91,"Argentinska bassängen",null,"Raitzsch et al (2008)"]
["C. mundulus",3.35,1.6,"Argentinska bassängen",null,"Raitzsch et al (2008)"]
["C. mundulus",3.81,1.7,"Argentinska bassängen",null,"Raitzsch et al (2008)"]
["C. mundulus",3.69,1.55,"Argentinska bassängen",null,"Raitzsch et al (2008)"]
["C. mundulus",0.93,0.95,"Argentinska bassängen",null,"Raitzsch et al (2008)"]
["C. mundulus",1.57,1.1200000000000001,"Argentinska bassängen",null,"Raitzsch et al (2008)"]
["C. mundulus",2.36,1.1599999999999999,"Angolanska bassängen",null,"Raitzsch et al (2008)"]
["C. mundulus",2.4300000000000002,1.21,"Angolanska bassängen",null,"Raitzsch et al (2008)"]
["C. mundulus",2.4300000000000002,1.65,"Angolanska bassängen",null,"Raitzsch et al (2008)"]
["C. mundulus",2.57,1.25,"Cape bassängen",null,"Raitzsch et al (2008)"]
["C. mundulus",3.16,1.06,"Cape bassängen",null,"Raitzsch et al (2008)"]
["C. mundulus",3.66,1.1200000000000001,"Cape bassängen",null,"Raitzsch et al (2008)"]
["C. mundulus",5.81,1.21,"Cape bassängen",null,"Raitzsch et al (2008)"]
["C. mundulus",2.1800000000000002,1.55,"Cape bassängen",null,"Raitzsch et al (2008)"]
["C. mundulus",10.41,3.12,"Cape bassängen",null,"Raitzsch et al (2008)"]
["C. mundulus",2.85,1.7,"Walvis Ridge",null,"Raitzsch et al (2008)"]
["C. mundulus",3.05,1.42,"Walvis Ridge",null,"Raitzsch et al (2008)"]
["C. mundulus",3.58,1.78,"Walvis Ridge",null,"Raitzsch et al (2008)"]
["C. mundulus",3.59,1.75,"Walvis Ridge",null,"Raitzsch et al (2008)"]
["C. mundulus",2.35,1.7,"Walvis Ridge",null,"Raitzsch et al (2008)"]
["C. mundulus",3.08,1.74,"Mittatlantiska ryggen",null,"Raitzsch et al (2008)"]
["C. mundulus",2.41,1.62,"Mittatlantiska ryggen",null,"Raitzsch et al (2008)"]
["C. mundulus",8.6999999999999993,2.41,"Korallhavet",null,"Rathburn & Dekker (1997)"]
["C. mundulus",8.6999999999999993,2.69,"Korallhavet",null,"Rathburn & Dekker (1997)"]
["C. mundulus",8.6999999999999993,2.67,"Korallhavet",null,"Rathburn & Dekker (1997)"]
["C. mundulus",8.6999999999999993,2.93,"Korallhavet",null,"Rathburn & Dekker (1997)"]
["C. mundulus",8.6999999999999993,2.2999999999999998,"Korallhavet",null,"Rathburn & Dekker (1997)"]
["C. mundulus",2.89,1.6748380225267963,"Atlanten",null,"Yu and Elderfield (2008)"]
["C. mundulus",2.89,1.6245297884212988,"Atlanten",null,"Yu and Elderfield (2008)"]
["C. mundulus",2.77,1.7707138300116183,"Atlanten",null,"Yu and Elderfield (2008)"]
["C. mundulus",2.96,1.7583458559488427,"Atlanten",null,"Yu and Elderfield (2008)"]
["C. mundulus",3,1.7150225682579257,"Atlanten",null,"Yu and Elderfield (2008)"]
["C. mundulus",2.91,1.6041608665149698,"Atlanten",null,"Yu and Elderfield (2008)"]
["C. mundulus",2.5099999999999998,1.554743311869297,"Atlanten",null,"Yu and Elderfield (2008)"]
["C. mundulus",2.56,1.7571383226863078,"Atlanten",null,"Yu and Elderfield (2008)"]
["C. mundulus",2.56,1.5210621439953342,"Atlanten",null,"Yu and Elderfield (2008)"]
["C. mundulus",2.56,1.5962819986777856,"Atlanten",null,"Yu and Elderfield (2008)"]
["C. mundulus",2.56,1.5910808205929685,"Atlanten",null,"Yu and Elderfield (2008)"]
["C. mundulus",2.87,1.5742054290801824,"Atlanten",null,"Yu and Elderfield (2008)"]
["C. mundulus",2.87,1.747050677117957,"Atlanten",null,"Yu and Elderfield (2008)"]
["C. mundulus",2.65,1.7908587146381749,"Atlanten",null,"Yu and Elderfield (2008)"]
["C. mundulus",2.8,1.6809839424531681,"Atlanten",null,"Yu and Elderfield (2008)"]
["C. mundulus",2.8,1.7287755792987891,"Atlanten",null,"Yu and Elderfield (2008)"]
["C. mundulus",2.8,1.6144846365821564,"Atlanten",null,"Yu and Elderfield (2008)"]
["C. mundulus",2.8,1.7147438886887838,"Atlanten",null,"Yu and Elderfield (2008)"]
["C. mundulus",2.8,1.6325491296190453,"Atlanten",null,"Yu and Elderfield (2008)"]
["C. mundulus",3.31,1.670196564785442,"Atlanten",null,"Yu and Elderfield (2008)"]
["C. mundulus",2.79,1.5371427355963387,"Atlanten",null,"Yu and Elderfield (2008)"]
["C. mundulus",2.79,1.6911459893144229,"Atlanten",null,"Yu and Elderfield (2008)"]
["C. mundulus",2.79,1.3494708223010403,"Atlanten",null,"Yu and Elderfield (2008)"]
["C. mundulus",2.58,1.6961798914505664,"Atlanten",null,"Yu and Elderfield (2008)"]
["C. mundulus",2.58,1.6622792772283024,"Atlanten",null,"Yu and Elderfield (2008)"]
["C. mundulus",2.58,1.6032473529414013,"Atlanten",null,"Yu and Elderfield (2008)"]
["C. mundulus",2.5499999999999998,1.7566428390160955,"Atlanten",null,"Yu and Elderfield (2008)"]
["C. mundulus",2.5499999999999998,2.2810567828964241,"Atlanten",null,"Yu and Elderfield (2008)"]
["C. mundulus",2.5099999999999998,1.4862700533855835,"Atlanten",null,"Yu and Elderfield (2008)"]
["C. mundulus",6,1.0610209540431434,"Atlanten",null,"Yu and Elderfield (2008)"]
["C. mundulus",6,1.1691312975800543,"Atlanten",null,"Yu and Elderfield (2008)"]
["C. mundulus",3.42,1.1913182506862081,"Atlanten",null,"Yu and Elderfield (2008)"]
["C. mundulus",3.44,1.1981349335046172,"Atlanten",null,"Yu and Elderfield (2008)"]
["C. mundulus",3.44,1.2641354680403196,"Atlanten",null,"Yu and Elderfield (2008)"]
["C. mundulus",5.5,1.094455723120161,"Atlanten",null,"Yu and Elderfield (2008)"]
["C. mundulus",5.5,1.286049204425072,"Atlanten",null,"Yu and Elderfield (2008)"]
["C. mundulus",2.48,1.6800513815653795,"Atlanten",null,"Yu and Elderfield (2008)"]
["C. mundulus",3.09,1.6574230048836258,"Atlanten",null,"Yu and Elderfield (2008)"]
["C. mundulus",2.63,1.5279881640462631,"Atlanten",null,"Yu and Elderfield (2008)"]
["C. mundulus",3.15,1.9745041401171575,"Atlanten",null,"Yu and Elderfield (2008)"]
["C. mundulus",4.1500000000000004,1.9625470722144274,"Atlanten",null,"Yu and Elderfield (2008)"]
["C. mundulus",4.1500000000000004,1.7930196417435018,"Atlanten",null,"Yu and Elderfield (2008)"]
["C. mundulus",3.14,1.9098801241939609,"Atlanten",null,"Yu and Elderfield (2008)"]
["C. mundulus",2.7,1.7919585036788404,"Atlanten",null,"Yu and Elderfield (2008)"]
["C. mundulus",2.7,1.8618105034622303,"Atlanten",null,"Yu and Elderfield (2008)"]
["C. mundulus",2.54,1.7028105347691629,"Atlanten",null,"Yu and Elderfield (2008)"]
["C. mundulus",2.34,1.423118830363636,"Atlanten",null,"Yu and Elderfield (2008)"]
["C. mundulus",2.84,1.7285936498377481,"Atlanten",null,"Yu and Elderfield (2008)"]
["C. mundulus",2.62,1.3688318482586843,"Atlanten",null,"Yu and Elderfield (2008)"]
["C. mundulus",2.62,1.596517761650379,"Atlanten",null,"Yu and Elderfield (2008)"]
["C. mundulus",2.52,1.6883058660030306,"Atlanten",null,"Yu and Elderfield (2008)"]
["C. mundulus",2.52,1.6242716606882281,"Atlanten",null,"Yu and Elderfield (2008)"]
["C. mundulus",2.5,3.0065609082778435,"Atlanten",null,"Yu and Elderfield (2008)"]
["C. mundulus",1.1557599999999999,0.98331720186199922,"Indiska oceanen",null,"Yu and Elderfield (2008)"]
["C. mundulus",1.25637,1.1455576278121824,"Indiska oceanen",null,"Yu and Elderfield (2008)"]
["C. mundulus",1.5798099999999999,0.76510891929324909,"Indiska oceanen",null,"Yu and Elderfield (2008)"]
["C. mundulus",1.53607,1.0088655916816767,"Stilla havet",null,"Yu and Elderfield (2008)"]
["C. wuellerstorfi",-0.22,1.32,"Östra Sibiriska Kontinentalsockeln",null,"Barrientos et al (2018)"]
["C. wuellerstorfi",-0.22,1.1499999999999999,"Östra Sibiriska Kontinentalsockeln",null,"Barrientos et al (2018)"]
["C. wuellerstorfi",-7.0000000000000007E-2,1.48,"Östra Sibiriska Kontinentalsockeln",null,"Barrientos et al (2018)"]
["C. wuellerstorfi",1.2,1.03,"Vema Channel",null,"Healey et al. (2008)"]
["C. wuellerstorfi",1.3,1.07,"Vema Channel",null,"Healey et al. (2008)"]
["C. wuellerstorfi",1.4,1.08,"Vema Channel",null,"Healey et al. (2008)"]
["C. wuellerstorfi",1.4,1.1599999999999999,"Vema Channel",null,"Healey et al. (2008)"]
["C. wuellerstorfi",1.45,1.1100000000000001,"Vema Channel",null,"Healey et al. (2008)"]
["C. wuellerstorfi",1.6,1.1100000000000001,"Vema Channel",null,"Healey et al. (2008)"]
["C. wuellerstorfi",2,1.19,"Vema Channel",null,"Healey et al. (2008)"]
["C. wuellerstorfi",2.1,1.36,"Vema Channel",null,"Healey et al. (2008)"]
["C. wuellerstorfi",2.41,1.33,"Vema Channel",null,"Healey et al. (2008)"]
["C. wuellerstorfi",2.4500000000000002,1.35,"Vema Channel",null,"Healey et al. (2008)"]
["C. wuellerstorfi",2.4500000000000002,1.31,"Vema Channel",null,"Healey et al. (2008)"]
["C. wuellerstorfi",2.76,1.42,"Vema Channel",null,"Healey et al. (2008)"]
["C. wuellerstorfi",2.76,1.48,"Vema Channel",null,"Healey et al. (2008)"]
["C. wuellerstorfi",2.88,1.44,"Vema Channel",null,"Healey et al. (2008)"]
["C. wuellerstorfi",2.85,1.52,"Vema Channel",null,"Healey et al. (2008)"]
["C. wuellerstorfi",2.93,1.55,"Vema Channel",null,"Healey et al. (2008)"]
["C. wuellerstorfi",2.93,1.6,"Vema Channel",null,"Healey et al. (2008)"]
["C. wuellerstorfi",2.88,1.48,"Vema Channel",null,"Healey et al. (2008)"]
["C. wuellerstorfi",2.71,1.43,"Vema Channel",null,"Healey et al. (2008)"]
["C. wuellerstorfi",2.88,1.44,"Vema Channel",null,"Healey et al. (2008)"]
["C. wuellerstorfi",2.71,1.54,"Vema Channel",null,"Healey et al. (2008)"]
["C. wuellerstorfi",2.76,1.5,"Vema Channel",null,"Healey et al. (2008)"]
["C. wuellerstorfi",1,1.1399999999999999,"Sydöstra Indiska Oceanen",null,"Healey et al. (2008)"]
["C. wuellerstorfi",1.5,1.1200000000000001,"Sydöstra Indiska Oceanen",null,"Healey et al. (2008)"]
["C. wuellerstorfi",1.58,1.18,"Sydöstra Indiska Oceanen",null,"Healey et al. (2008)"]
["C. wuellerstorfi",0.95,0.98,"Sydöstra Indiska Oceanen",null,"Healey et al. (2008)"]
["C. wuellerstorfi",0.96,0.97,"Sydöstra Indiska Oceanen",null,"Healey et al. (2008)"]
["C. wuellerstorfi",1.1000000000000001,0.96,"Sydöstra Indiska Oceanen",null,"Healey et al. (2008)"]
["C. wuellerstorfi",0.81,0.79,"Sydöstra Indiska Oceanen",null,"Healey et al. (2008)"]
["C. wuellerstorfi",3.77,2.0499999999999998,"Södra Kinesiska havet",null,"Healey et al. (2008)"]
["C. wuellerstorfi",2.4,1.3,"Södra Kinesiska havet",null,"Healey et al. (2008)"]
["C. wuellerstorfi",2.71,1.44,"Södra Kinesiska havet",null,"Healey et al. (2008)"]
["C. wuellerstorfi",2.89,1.42,"Södra Kinesiska havet",null,"Healey et al. (2008)"]
["C. wuellerstorfi",3.3,1.62,"Nära Reykjanes Ridge",null,"Lear et al (2002)"]
["C. wuellerstorfi",3.3,1.69,"Nära Reykjanes Ridge",null,"Lear et al (2002)"]
["C. wuellerstorfi",3.3,1.55,"Nära Reykjanes Ridge",null,"Lear et al (2002)"]
["C. wuellerstorfi",2.7,1.3,"Nära Reykjanes Ridge",null,"Lear et al (2002)"]
["C. wuellerstorfi",2.36,1.48,"Hawaii",null,"Lear et al (2002)"]
["C. wuellerstorfi",2.36,0.98,"Hawaii",null,"Lear et al (2002)"]
["C. wuellerstorfi",2.36,0.92,"Hawaii",null,"Lear et al (2002)"]
["C. wuellerstorfi",2.36,1.84,"Hawaii",null,"Lear et al (2002)"]
["C. wuellerstorfi",1.76,1,"Hawaii",null,"Lear et al (2002)"]
["C. wuellerstorfi",1.76,0.99,"Hawaii",null,"Lear et al (2002)"]
["C. wuellerstorfi",1.76,1.03,"Hawaii",null,"Lear et al (2002)"]
["C. wuellerstorfi",1.76,1.05,"Hawaii",null,"Lear et al (2002)"]
["C. wuellerstorfi",1.75,0.95,"Hawaii",null,"Lear et al (2002)"]
["C. wuellerstorfi",1.75,0.96,"Hawaii",null,"Lear et al (2002)"]
["C. wuellerstorfi",2.6,1.1599999999999999,"Ceara Rise",null,"Martin et al (2002)"]
["C. wuellerstorfi",2.6,1.1399999999999999,"Ceara Rise",null,"Martin et al (2002)"]
["C. wuellerstorfi",2.5,1.2,"Ceara Rise",null,"Martin et al (2002)"]
["C. wuellerstorfi",2.2000000000000002,1.1599999999999999,"Ceara Rise",null,"Martin et al (2002)"]
["C. wuellerstorfi",2.2000000000000002,1.07,"Ceara Rise",null,"Martin et al (2002)"]
["C. wuellerstorfi",2.2000000000000002,1.0900000000000001,"Ceara Rise",null,"Martin et al (2002)"]
["C. wuellerstorfi",2.1,1.01,"Ceara Rise",null,"Martin et al (2002)"]
["C. wuellerstorfi",1.8,0.99,"Ceara Rise",null,"Martin et al (2002)"]
["C. wuellerstorfi",1.5,0.79,"Ceara Rise",null,"Martin et al (2002)"]
["C. wuellerstorfi",1.5,0.72,"Ceara Rise",null,"Martin et al (2002)"]
["C. wuellerstorfi",1.5,0.68,"Ceara Rise",null,"Martin et al (2002)"]
["C. wuellerstorfi",2.8,1.37,"Ontong Java Plateau",null,"Martin et al (2002)"]
["C. wuellerstorfi",2.7,1.29,"Ontong Java Plateau",null,"Martin et al (2002)"]
["C. wuellerstorfi",2.7,1.32,"Ontong Java Plateau",null,"Martin et al (2002)"]
["C. wuellerstorfi",2.2000000000000002,1.1499999999999999,"Ontong Java Plateau",null,"Martin et al (2002)"]
["C. wuellerstorfi",2,1.05,"Ontong Java Plateau",null,"Martin et al (2002)"]
["C. wuellerstorfi",1.9,1.06,"Ontong Java Plateau",null,"Martin et al (2002)"]
["C. wuellerstorfi",1.9,1.1200000000000001,"Ontong Java Plateau",null,"Martin et al (2002)"]
["C. wuellerstorfi",1.9,1.1299999999999999,"Ontong Java Plateau",null,"Martin et al (2002)"]
["C. wuellerstorfi",1.6,0.86,"Ontong Java Plateau",null,"Martin et al (2002)"]
["C. wuellerstorfi",3,1.45,"Andra platser i Atlanten",null,"Martin et al (2002)"]
["C. wuellerstorfi",3,1.46,"Andra platser i Atlanten",null,"Martin et al (2002)"]
["C. wuellerstorfi",2.9,1.31,"Andra platser i Atlanten",null,"Martin et al (2002)"]
["C. wuellerstorfi",2.9,1.34,"Andra platser i Atlanten",null,"Martin et al (2002)"]
["C. wuellerstorfi",2.7,1.22,"Andra platser i Atlanten",null,"Martin et al (2002)"]
["C. wuellerstorfi",1.4,0.75,"Andra platser i Atlanten",null,"Martin et al (2002)"]
["C. wuellerstorfi",-1.1000000000000001,1.1100000000000001,"Andra platser i Atlanten",null,"Martin et al (2002)"]
["C. wuellerstorfi",0.86,0.99,"Brasilianska bassängen",null,"Raitzsch et al (2008)"]
["C. wuellerstorfi",3.88,1.98,"Brasilianska bassängen",null,"Raitzsch et al (2008)"]
["C. wuellerstorfi",2.11,1.73,"Brasilianska bassängen",null,"Raitzsch et al (2008)"]
["C. wuellerstorfi",1.77,1.76,"Brasilianska bassängen",null,"Raitzsch et al (2008)"]
["C. wuellerstorfi",1.68,1.4,"Brasilianska bassängen",null,"Raitzsch et al (2008)"]
["C. wuellerstorfi",0.43,0.84,"Brasilianska bassängen",null,"Raitzsch et al (2008)"]
["C. wuellerstorfi",1.53,1.37,"Brasilianska bassängen",null,"Raitzsch et al (2008)"]
["C. wuellerstorfi",3.59,1.51,"Argentinska bassängen",null,"Raitzsch et al (2008)"]
["C. wuellerstorfi",3.55,1.48,"Argentinska bassängen",null,"Raitzsch et al (2008)"]
["C. wuellerstorfi",0.94,1.02,"Argentinska bassängen",null,"Raitzsch et al (2008)"]
["C. wuellerstorfi",1.2,0.94,"Argentinska bassängen",null,"Raitzsch et al (2008)"]
["C. wuellerstorfi",1.39,1.04,"Argentinska bassängen",null,"Raitzsch et al (2008)"]
["C. wuellerstorfi",3.35,1.55,"Argentinska bassängen",null,"Raitzsch et al (2008)"]
["C. wuellerstorfi",3.81,1.43,"Argentinska bassängen",null,"Raitzsch et al (2008)"]
["C. wuellerstorfi",0.39,0.84,"Argentinska bassängen",null,"Raitzsch et al (2008)"]
["C. wuellerstorfi",1.27,1.23,"Argentinska bassängen",null,"Raitzsch et al (2008)"]
["C. wuellerstorfi",0.93,1.1499999999999999,"Argentinska bassängen",null,"Raitzsch et al (2008)"]
["C. wuellerstorfi",0.43,0.95,"Argentinska bassängen",null,"Raitzsch et al (2008)"]
["C. wuellerstorfi",1.57,1.27,"Argentinska bassängen",null,"Raitzsch et al (2008)"]
["C. wuellerstorfi",0.92,1.17,"Argentinska bassängen",null,"Raitzsch et al (2008)"]
["C. wuellerstorfi",2.5099999999999998,1.57,"Guineanska bassängen",null,"Raitzsch et al (2008)"]
["C. wuellerstorfi",2.36,1.49,"Angolanska bassängen",null,"Raitzsch et al (2008)"]
["C. wuellerstorfi",2.4300000000000002,1.3,"Angolanska bassängen",null,"Raitzsch et al (2008)"]
["C. wuellerstorfi",2.4300000000000002,1.54,"Angolanska bassängen",null,"Raitzsch et al (2008)"]
["C. wuellerstorfi",2.57,1.5,"Cape bassängen",null,"Raitzsch et al (2008)"]
["C. wuellerstorfi",3.16,1.2,"Cape bassängen",null,"Raitzsch et al (2008)"]
["C. wuellerstorfi",3.66,1.5,"Cape bassängen",null,"Raitzsch et al (2008)"]
["C. wuellerstorfi",1.43,1.08,"Cape bassängen",null,"Raitzsch et al (2008)"]
["C. wuellerstorfi",3.46,1.34,"Cape bassängen",null,"Raitzsch et al (2008)"]
["C. wuellerstorfi",2.95,1.42,"Cape bassängen",null,"Raitzsch et al (2008)"]
["C. wuellerstorfi",2.4300000000000002,1.79,"Cape bassängen",null,"Raitzsch et al (2008)"]
["C. wuellerstorfi",2.36,1.1599999999999999,"Cape bassängen",null,"Raitzsch et al (2008)"]
["C. wuellerstorfi",2.1800000000000002,1.28,"Cape bassängen",null,"Raitzsch et al (2008)"]
["C. wuellerstorfi",3.33,2.02,"Cape bassängen",null,"Raitzsch et al (2008)"]
["C. wuellerstorfi",2.91,1.07,"Cape bassängen",null,"Raitzsch et al (2008)"]
["C. wuellerstorfi",2.67,1.44,"Walvis Ridge",null,"Raitzsch et al (2008)"]
["C. wuellerstorfi",2.85,1.38,"Walvis Ridge",null,"Raitzsch et al (2008)"]
["C. wuellerstorfi",3.05,1.33,"Walvis Ridge",null,"Raitzsch et al (2008)"]
["C. wuellerstorfi",3.58,1.72,"Walvis Ridge",null,"Raitzsch et al (2008)"]
["C. wuellerstorfi",3.59,1.87,"Walvis Ridge",null,"Raitzsch et al (2008)"]
["C. wuellerstorfi",2.35,1.74,"Walvis Ridge",null,"Raitzsch et al (2008)"]
["C. wuellerstorfi",2.36,1.73,"Mittatlantiska ryggen",null,"Raitzsch et al (2008)"]
["C. wuellerstorfi",2.5099999999999998,2.0099999999999998,"Mittatlantiska ryggen",null,"Raitzsch et al (2008)"]
["C. wuellerstorfi",2.41,1.58,"Mittatlantiska ryggen",null,"Raitzsch et al (2008)"]
["C. wuellerstorfi",2.25,1.54,"Korallhavet",null,"Rathburn & Dekker (1997)"]
["C. wuellerstorfi",2.25,1.86,"Korallhavet",null,"Rathburn & Dekker (1997)"]
["C. wuellerstorfi",2.25,1.88,"Korallhavet",null,"Rathburn & Dekker (1997)"]
["C. wuellerstorfi",2.25,1.27,"Korallhavet",null,"Rathburn & Dekker (1997)"]
["C. wuellerstorfi",2.25,3.19,"Korallhavet",null,"Rathburn & Dekker (1997)"]
["C. wuellerstorfi",2.25,2.8,"Korallhavet",null,"Rathburn & Dekker (1997)"]
["C. wuellerstorfi",2.64,1.17,"Korallhavet",null,"Rathburn & Dekker (1997)"]
["C. wuellerstorfi",2.64,1.72,"Korallhavet",null,"Rathburn & Dekker (1997)"]
["C. wuellerstorfi",2.64,2.2200000000000002,"Korallhavet",null,"Rathburn & Dekker (1997)"]
["C. wuellerstorfi",2.64,3.82,"Korallhavet",null,"Rathburn & Dekker (1997)"]
["C. wuellerstorfi",2.64,2.39,"Korallhavet",null,"Rathburn & Dekker (1997)"]
["C. wuellerstorfi",2.64,2.87,"Korallhavet",null,"Rathburn & Dekker (1997)"]
["C. wuellerstorfi",2.64,4.01,"Korallhavet",null,"Rathburn & Dekker (1997)"]
["C. wuellerstorfi",2.64,2.0499999999999998,"Korallhavet",null,"Rathburn & Dekker (1997)"]
["C. wuellerstorfi",2.64,1.68,"Korallhavet",null,"Rathburn & Dekker (1997)"]
["C. wuellerstorfi",2.95,1.43,"Korallhavet",null,"Rathburn & Dekker (1997)"]
["C. wuellerstorfi",3.57,4.37,"Korallhavet",null,"Rathburn & Dekker (1997)"]
["C. wuellerstorfi",3.57,2.4700000000000002,"Korallhavet",null,"Rathburn & Dekker (1997)"]
["C. wuellerstorfi",3.57,1.97,"Korallhavet",null,"Rathburn & Dekker (1997)"]
["C. wuellerstorfi",3.57,2.67,"Korallhavet",null,"Rathburn & Dekker (1997)"]
["C. wuellerstorfi",4.33,2.4300000000000002,"Korallhavet",null,"Rathburn & Dekker (1997)"]
["C. wuellerstorfi",4.33,2.2200000000000002,"Korallhavet",null,"Rathburn & Dekker (1997)"]
["C. wuellerstorfi",4.33,2.96,"Korallhavet",null,"Rathburn & Dekker (1997)"]
["C. wuellerstorfi",4.33,2.61,"Korallhavet",null,"Rathburn & Dekker (1997)"]
["C. wuellerstorfi",4.33,2.66,"Korallhavet",null,"Rathburn & Dekker (1997)"]
["C. wuellerstorfi",4.33,2.08,"Korallhavet",null,"Rathburn & Dekker (1997)"]
["C. wuellerstorfi",4.33,4.68,"Korallhavet",null,"Rathburn & Dekker (1997)"]
["C. wuellerstorfi",4.33,2.54,"Korallhavet",null,"Rathburn & Dekker (1997)"]
["C. wuellerstorfi",4.33,2.1800000000000002,"Korallhavet",null,"Rathburn & Dekker (1997)"]
["C. wuellerstorfi",4.33,2.8,"Korallhavet",null,"Rathburn & Dekker (1997)"]
["C. wuellerstorfi",4.33,1.83,"Korallhavet",null,"Rathburn & Dekker (1997)"]
["C. wuellerstorfi",4.33,2.08,"Korallhavet",null,"Rathburn & Dekker (1997)"]
["C. wuellerstorfi",5.87,3.82,"Korallhavet",null,"Rathburn & Dekker (1997)"]
["C. wuellerstorfi",5.87,5.15,"Korallhavet",null,"Rathburn & Dekker (1997)"]
["C. wuellerstorfi",5.87,3.99,"Korallhavet",null,"Rathburn & Dekker (1997)"]
["C. wuellerstorfi",5.87,2.4700000000000002,"Korallhavet",null,"Rathburn & Dekker (1997)"]
["C. wuellerstorfi",5.87,"70,7","Korallhavet",null,"Rathburn & Dekker (1997)"]
["C. wuellerstorfi",5.87,2.78,"Korallhavet",null,"Rathburn & Dekker (1997)"]
["C. wuellerstorfi",5.87,2.89,"Korallhavet",null,"Rathburn & Dekker (1997)"]
["C. wuellerstorfi",5.87,2.86,"Korallhavet",null,"Rathburn & Dekker (1997)"]
["C. wuellerstorfi",5.87,2.61,"Korallhavet",null,"Rathburn & Dekker (1997)"]
["C. wuellerstorfi",5.87,2.5,"Korallhavet",null,"Rathburn & Dekker (1997)"]
["C. wuellerstorfi",5.87,3.57,"Korallhavet",null,"Rathburn & Dekker (1997)"]
["C. wuellerstorfi",8.6999999999999993,2.75,"Korallhavet",null,"Rathburn & Dekker (1997)"]
["C. wuellerstorfi",8.6999999999999993,2.74,"Korallhavet",null,"Rathburn & Dekker (1997)"]
["C. wuellerstorfi",8.6999999999999993,3.29,"Korallhavet",null,"Rathburn & Dekker (1997)"]
["C. wuellerstorfi",2.8,2.25,"Ceara Ridge",null,"Russel et al (1994)"]
["C. wuellerstorfi",2.8,2.04,"Ceara Ridge",null,"Russel et al (1994)"]
["C. wuellerstorfi",2.6,1.86,"Ceara Ridge",null,"Russel et al (1994)"]
["C. wuellerstorfi",2.6,1.92,"Ceara Ridge",null,"Russel et al (1994)"]
["C. wuellerstorfi",2.4,1.77,"Ceara Ridge",null,"Russel et al (1994)"]
["C. wuellerstorfi",2.2999999999999998,1.46,"Ceara Ridge",null,"Russel et al (1994)"]
["C. wuellerstorfi",2.2999999999999998,1.54,"Ceara Ridge",null,"Russel et al (1994)"]
["C. wuellerstorfi",2.8,1.69,"Ontong Java Plateau",null,"Russel et al (1994)"]
["C. wuellerstorfi",2.8,1.69,"Ontong Java Plateau",null,"Russel et al (1994)"]
["C. wuellerstorfi",2.7,1.58,"Ontong Java Plateau",null,"Russel et al (1994)"]
["C. wuellerstorfi",2.7,1.65,"Ontong Java Plateau",null,"Russel et al (1994)"]
["C. wuellerstorfi",6.06,{"$f":"B317-0.1","v":5.96},"Norra Brazilian Margin",-0.1,"Tisserand et al (2013)"]
["C. wuellerstorfi",6.06,5.96,"Norra Brazilian Margin",-0.1,"Tisserand et al (2013)"]
["C. wuellerstorfi",6.06,5.96,"Norra Brazilian Margin",-0.1,"Tisserand et al (2013)"]
["C. wuellerstorfi",6.06,5.96,"Norra Brazilian Margin",-0.1,"Tisserand et al (2013)"]
["C. wuellerstorfi",6.06,5.96,"Norra Brazilian Margin",-0.1,"Tisserand et al (2013)"]
["C. wuellerstorfi",6.06,5.96,"Norra Brazilian Margin",-0.1,"Tisserand et al (2013)"]
["C. wuellerstorfi",5.67,5.57,"Norra Brazilian Margin",-0.1,"Tisserand et al (2013)"]
["C. wuellerstorfi",5.67,5.57,"Norra Brazilian Margin",-0.1,"Tisserand et al (2013)"]
["C. wuellerstorfi",5.67,5.57,"Norra Brazilian Margin",-0.1,"Tisserand et al (2013)"]
["C. wuellerstorfi",5.38,5.28,"Norra Brazilian Margin",-0.1,"Tisserand et al (2013)"]
["C. wuellerstorfi",5.38,5.28,"Norra Brazilian Margin",-0.1,"Tisserand et al (2013)"]
["C. wuellerstorfi",5.38,5.28,"Norra Brazilian Margin",-0.1,"Tisserand et al (2013)"]
["C. wuellerstorfi",5.38,5.28,"Norra Brazilian Margin",-0.1,"Tisserand et al (2013)"]
["C. wuellerstorfi",5.38,5.28,"Norra Brazilian Margin",-0.1,"Tisserand et al (2013)"]
["C. wuellerstorfi",5.38,5.28,"Norra Brazilian Margin",-0.1,"Tisserand et al (2013)"]
["C. wuellerstorfi",4.92,4.82,"Norra Brazilian Margin",-0.1,"Tisserand et al (2013)"]
["C. wuellerstorfi",4.92,4.82,"Norra Brazilian Margin",-0.1,"Tisserand et al (2013)"]
["C. wuellerstorfi",4.92,{"$f":"B334-0.1","v":4.82},"Norra Brazilian Margin",-0.1,"Tisserand et al (2013)"]
["C. wuellerstorfi",4.92,{"$f":"B335-0.1","v":4.82},"Norra Brazilian Margin",-0.1,"Tisserand et al (2013)"]
["C. wuellerstorfi",4.92,4.82,"Norra Brazilian Margin",-0.1,"Tisserand et al (2013)"]
["C. wuellerstorfi",4.92,4.82,"Norra Brazilian Margin",-0.1,"Tisserand et al (2013)"]
["C. wuellerstorfi",4.6399999999999997,4.54,"Norra Brazilian Margin",-0.1,"Tisserand et al (2013)"]
["C. wuellerstorfi",4.6399999999999997,4.54,"Norra Brazilian Margin",-0.1,"Tisserand et al (2013)"]
["C. wuellerstorfi",4.6399999999999997,4.54,"Norra Brazilian Margin",-0.1,"Tisserand et al (2013)"]
["C. wuellerstorfi",4.6399999999999997,4.54,"Norra Brazilian Margin",-0.1,"Tisserand et al (2013)"]
["C. wuellerstorfi",4.6399999999999997,4.54,"Norra Brazilian Margin",-0.1,"Tisserand et al (2013)"]
["C. wuellerstorfi",4.6399999999999997,4.54,"Norra Brazilian Margin",-0.1,"Tisserand et al (2013)"]
["C. wuellerstorfi",4.3,4.2,"Norra Brazilian Margin",-0.1,"Tisserand et al (2013)"]
["C. wuellerstorfi",4.3,4.2,"Norra Brazilian Margin",-0.1,"Tisserand et al (2013)"]
["C. wuellerstorfi",4.3,4.2,"Norra Brazilian Margin",-0.1,"Tisserand et al (2013)"]
["C. wuellerstorfi",4.3,4.2,"Norra Brazilian Margin",-0.1,"Tisserand et al (2013)"]
["C. wuellerstorfi",4.17,4.07,"Norra Brazilian Margin",-0.1,"Tisserand et al (2013)"]
["C. wuellerstorfi",4.17,4.07,"Norra Brazilian Margin",-0.1,"Tisserand et al (2013)"]
["C. wuellerstorfi",4.17,4.07,"Norra Brazilian Margin",-0.1,"Tisserand et al (2013)"]
["C. wuellerstorfi",-0.77216099999999999,1.343620126800499,"Norska havet",null,"Yu and Elderfield (2008)"]
["C. wuellerstorfi",-0.79507099999999997,1.4128713006593847,"Norska havet",null,"Yu and Elderfield (2008)"]
["C. wuellerstorfi",-1.1491100000000001,1.4732549355429423,"Norska havet",null,"Yu and Elderfield (2008)"]
["C. wuellerstorfi",-0.86912500000000004,1.015370978812322,"Norska havet",null,"Yu and Elderfield (2008)"]
["C. wuellerstorfi",-0.78422899999999995,1.4050110257373731,"Norska havet",null,"Yu and Elderfield (2008)"]
["C. wuellerstorfi",-1.0823400000000001,1.3812914100419558,"Norska havet",null,"Yu and Elderfield (2008)"]
["C. wuellerstorfi",-0.86401600000000001,1.089525187255405,"Norska havet",null,"Yu and Elderfield (2008)"]
["C. wuellerstorfi",-0.86401600000000001,1.2407950738576301,"Norska havet",-0.1,"Yu and Elderfield (2008)"]
["C. wuellerstorfi",-0.83899999999999997,1.0301873745866419,"Norska havet",null,"Yu and Elderfield (2008)"]
["C. wuellerstorfi",-0.83899999999999997,1.1877476892243499,"Norska havet",-0.1,"Yu and Elderfield (2008)"]
["C. wuellerstorfi",3.2186599999999999,0.98439704960191365,"Atlanten",null,"Yu and Elderfield (2008)"]
["C. wuellerstorfi",3.2186599999999999,1.2272925292551,"Atlanten",-0.1,"Yu and Elderfield (2008)"]
["C. wuellerstorfi",2.7410999999999999,1.06365015699877,"Atlanten",-0.1,"Yu and Elderfield (2008)"]
["C. wuellerstorfi",2.7427000000000001,1.1771671045703116,"Atlanten",null,"Yu and Elderfield (2008)"]
["C. wuellerstorfi",2.7427000000000001,1.35572011311615,"Atlanten",-0.1,"Yu and Elderfield (2008)"]
["C. wuellerstorfi",2.8878300000000001,1.0937957693950959,"Atlanten",null,"Yu and Elderfield (2008)"]
["C. wuellerstorfi",2.8192599999999999,1.2317027509704297,"Atlanten",null,"Yu and Elderfield (2008)"]
["C. wuellerstorfi",2.8192599999999999,1.2776673935692699,"Atlanten",-0.1,"Yu and Elderfield (2008)"]
["C. wuellerstorfi",3.0304500000000001,1.3314205194523632,"Atlanten",null,"Yu and Elderfield (2008)"]
["C. wuellerstorfi",3.0304500000000001,1.32632831831174,"Atlanten",-0.1,"Yu and Elderfield (2008)"]
["C. wuellerstorfi",3.0304500000000001,1.1930332276175899,"Atlanten",-0.1,"Yu and Elderfield (2008)"]
["C. wuellerstorfi",2.9954499999999999,1.3959704998709495,"Atlanten",null,"Yu and Elderfield (2008)"]
["C. wuellerstorfi",2.9954499999999999,1.3663625905555401,"Atlanten",-0.1,"Yu and Elderfield (2008)"]
["C. wuellerstorfi",2.9954499999999999,1.30763491249212,"Atlanten",-0.1,"Yu and Elderfield (2008)"]
["C. wuellerstorfi",2.9954499999999999,1.3872466334747886,"Atlanten",null,"Yu and Elderfield (2008)"]
["C. wuellerstorfi",2.9954499999999999,1.3729475354066401,"Atlanten",-0.1,"Yu and Elderfield (2008)"]
["C. wuellerstorfi",2.9954499999999999,1.5269459257857101,"Atlanten",-0.1,"Yu and Elderfield (2008)"]
["C. wuellerstorfi",3.4496799999999999,1.4729860749265999,"Atlanten",-0.1,"Yu and Elderfield (2008)"]
["C. wuellerstorfi",3.4496799999999999,1.63622697765082,"Atlanten",-0.1,"Yu and Elderfield (2008)"]
["C. wuellerstorfi",2.77094,1.2463680754447499,"Atlanten",-0.1,"Yu and Elderfield (2008)"]
["C. wuellerstorfi",2.9044500000000002,1.2965872897450283,"Atlanten",null,"Yu and Elderfield (2008)"]
["C. wuellerstorfi",2.9044500000000002,1.3519327592794199,"Atlanten",-0.1,"Yu and Elderfield (2008)"]
["C. wuellerstorfi",2.86077,1.3561561315349222,"Atlanten",null,"Yu and Elderfield (2008)"]
["C. wuellerstorfi",3.0497899999999998,1.4250054489240442,"Atlanten",null,"Yu and Elderfield (2008)"]
["C. wuellerstorfi",2.8862899999999998,1.3030836834634367,"Atlanten",null,"Yu and Elderfield (2008)"]
["C. wuellerstorfi",2.77176,1.45134027205962,"Atlanten",-0.1,"Yu and Elderfield (2008)"]
["C. wuellerstorfi",2.9606699999999999,1.3902662978976801,"Atlanten",-0.1,"Yu and Elderfield (2008)"]
["C. wuellerstorfi",2.9998100000000001,1.1663365243375601,"Atlanten",-0.1,"Yu and Elderfield (2008)"]
["C. wuellerstorfi",2.9077199999999999,1.2493828319569706,"Atlanten",null,"Yu and Elderfield (2008)"]
["C. wuellerstorfi",2.5140099999999999,1.19890088178531,"Atlanten",-0.1,"Yu and Elderfield (2008)"]
["C. wuellerstorfi",2.5140099999999999,1.1449821311952999,"Atlanten",-0.1,"Yu and Elderfield (2008)"]
["C. wuellerstorfi",2.62757,1.3038619888039835,"Atlanten",null,"Yu and Elderfield (2008)"]
["C. wuellerstorfi",2.79752,1.1863502264996382,"Atlanten",null,"Yu and Elderfield (2008)"]
["C. wuellerstorfi",2.5681400000000001,1.2784217250382732,"Atlanten",null,"Yu and Elderfield (2008)"]
["C. wuellerstorfi",2.5560499999999999,1.2147127062719978,"Atlanten",null,"Yu and Elderfield (2008)"]
["C. wuellerstorfi",2.5560499999999999,1.0408261269332599,"Atlanten",-0.1,"Yu and Elderfield (2008)"]
["C. wuellerstorfi",2.5560499999999999,1.2994270956201588,"Atlanten",null,"Yu and Elderfield (2008)"]
["C. wuellerstorfi",2.6474700000000002,1.3735797211246801,"Atlanten",-0.1,"Yu and Elderfield (2008)"]
["C. wuellerstorfi",2.6474700000000002,1.3033528604389994,"Atlanten",null,"Yu and Elderfield (2008)"]
["C. wuellerstorfi",2.6474700000000002,1.5236358627010358,"Atlanten",null,"Yu and Elderfield (2008)"]
["C. wuellerstorfi",2.79718,1.3999358780536744,"Atlanten",null,"Yu and Elderfield (2008)"]
["C. wuellerstorfi",3.3124799999999999,1.28429355012903,"Atlanten",-0.1,"Yu and Elderfield (2008)"]
["C. wuellerstorfi",2.7871999999999999,1.1196068039879701,"Atlanten",-0.1,"Yu and Elderfield (2008)"]
["C. wuellerstorfi",2.5770900000000001,1.01353122601861,"Atlanten",-0.1,"Yu and Elderfield (2008)"]
["C. wuellerstorfi",2.5533199999999998,0.97691737175813997,"Atlanten",-0.1,"Yu and Elderfield (2008)"]
["C. wuellerstorfi",2.51248,1.0787623583843899,"Atlanten",-0.1,"Yu and Elderfield (2008)"]
["C. wuellerstorfi",2.51248,1.11627222188699,"Atlanten",-0.1,"Yu and Elderfield (2008)"]
["C. wuellerstorfi",2.51248,1.08529284492073,"Atlanten",-0.1,"Yu and Elderfield (2008)"]
["C. wuellerstorfi",3.5695100000000002,1.2498132656483263,"Atlanten","–","Yu and Elderfield (2008)"]
["C. wuellerstorfi",3.5695100000000002,1.2286577922450199,"Atlanten",-0.1,"Yu and Elderfield (2008)"]
["C. wuellerstorfi",2.51206,1.16007725025088,"Atlanten",-0.1,"Yu and Elderfield (2008)"]
["C. wuellerstorfi",2.5246900000000001,1.0048670705452201,"Atlanten",-0.1,"Yu and Elderfield (2008)"]
["C. wuellerstorfi",3.4207100000000001,1.0843547453142499,"Atlanten",-0.1,"Yu and Elderfield (2008)"]
["C. wuellerstorfi",3.4207100000000001,1.25358825749716,"Atlanten",-0.1,"Yu and Elderfield (2008)"]
["C. wuellerstorfi",3.4392999999999998,1.2179594378689,"Atlanten",-0.1,"Yu and Elderfield (2008)"]
["C. wuellerstorfi",2.4797799999999999,1.04512824565996,"Atlanten",-0.1,"Yu and Elderfield (2008)"]
["C. wuellerstorfi",2.74688,1.2558788712512419,"Atlanten",null,"Yu and Elderfield (2008)"]
["C. wuellerstorfi",2.4307699999999999,1.29394317363698,"Atlanten",-0.1,"Yu and Elderfield (2008)"]
["C. wuellerstorfi",2.6324900000000002,1.17485113431263,"Atlanten",-0.1,"Yu and Elderfield (2008)"]
["C. wuellerstorfi",4.1218700000000004,1.57323885881931,"Atlanten",-0.1,"Yu and Elderfield (2008)"]
["C. wuellerstorfi",4,1.5531784326236149,"Atlanten",null,"Yu and Elderfield (2008)"]
["C. wuellerstorfi",4.1500000000000004,1.3784132473939399,"Atlanten",null,"Yu and Elderfield (2008)"]
["C. wuellerstorfi",4.1500000000000004,1.8834291411945181,"Atlanten",null,"Yu and Elderfield (2008)"]
["C. wuellerstorfi",4.1500000000000004,1.2169294664261983,"Atlanten",null,"Yu and Elderfield (2008)"]
["C. wuellerstorfi",4.1500000000000004,1.57178051281075,"Atlanten",null,"Yu and Elderfield (2008)"]
["C. wuellerstorfi",4.26,1.5615117012510735,"Atlanten",null,"Yu and Elderfield (2008)"]
["C. wuellerstorfi",4.3514099999999996,1.2024459947049888,"Atlanten",null,"Yu and Elderfield (2008)"]
["C. wuellerstorfi",4.3514099999999996,1.2090668207280109,"Atlanten",null,"Yu and Elderfield (2008)"]
["C. wuellerstorfi",1.9511400000000001,1.0286209270359457,"Atlanten",null,"Yu and Elderfield (2008)"]
["C. wuellerstorfi",1.9511400000000001,1.078933099114209,"Atlanten",null,"Yu and Elderfield (2008)"]
["C. wuellerstorfi",1.9511400000000001,1.0546981515153484,"Atlanten",null,"Yu and Elderfield (2008)"]
["C. wuellerstorfi",3.1443099999999999,1.2861701253720699,"Atlanten",null,"Yu and Elderfield (2008)"]
["C. wuellerstorfi",2.7022200000000001,1.1863597438187927,"Atlanten",null,"Yu and Elderfield (2008)"]
["C. wuellerstorfi",2.7022200000000001,1.5864000395528148,"Atlanten",null,"Yu and Elderfield (2008)"]
["C. wuellerstorfi",2.7022200000000001,1.4288206928557858,"Atlanten",null,"Yu and Elderfield (2008)"]
["C. wuellerstorfi",2.5378099999999999,1.3865721499806398,"Atlanten",null,"Yu and Elderfield (2008)"]
["C. wuellerstorfi",2.5378099999999999,1.4470068866392867,"Atlanten",null,"Yu and Elderfield (2008)"]
["C. wuellerstorfi",2.4148700000000001,1.2483771387949079,"Atlanten",null,"Yu and Elderfield (2008)"]
["C. wuellerstorfi",2.33521,1.2405077218333105,"Atlanten",null,"Yu and Elderfield (2008)"]
["C. wuellerstorfi",2.33521,1.2794473031557541,"Atlanten",null,"Yu and Elderfield (2008)"]
["C. wuellerstorfi",2.2496700000000001,1.375414449337947,"Atlanten",null,"Yu and Elderfield (2008)"]
["C. wuellerstorfi",1.4442900000000001,0.90327400149126424,"Atlanten",null,"Yu and Elderfield (2008)"]
["C. wuellerstorfi",1.4442900000000001,0.8803902067266598,"Atlanten",null,"Yu and Elderfield (2008)"]
["C. wuellerstorfi",2.8391199999999999,1.6705026713672435,"Atlanten",null,"Yu and Elderfield (2008)"]
["C. wuellerstorfi",2.8391199999999999,1.3757880586686468,"Atlanten",null,"Yu and Elderfield (2008)"]
["C. wuellerstorfi",2.8391199999999999,1.2902526076419383,"Atlanten",null,"Yu and Elderfield (2008)"]
["C. wuellerstorfi",2.6228799999999999,1.2309942059047208,"Atlanten",null,"Yu and Elderfield (2008)"]
["C. wuellerstorfi",2.6228799999999999,1.2011942100070443,"Atlanten",null,"Yu and Elderfield (2008)"]
["C. wuellerstorfi",2.6228799999999999,1.1997877622670277,"Atlanten",null,"Yu and Elderfield (2008)"]
["C. wuellerstorfi",2.1023399999999999,0.96363000971909274,"Atlanten",null,"Yu and Elderfield (2008)"]
["C. wuellerstorfi",2.1023399999999999,0.93548118884334153,"Atlanten",null,"Yu and Elderfield (2008)"]
["C. wuellerstorfi",2.17577,1.1262928368690603,"Atlanten",null,"Yu and Elderfield (2008)"]
["C. wuellerstorfi",2.5178699999999998,1.2323159499152971,"Atlanten",null,"Yu and Elderfield (2008)"]
["C. wuellerstorfi",2.5049899999999998,1.0333234506271149,"Atlanten",null,"Yu and Elderfield (2008)"]
["C. wuellerstorfi",1.1360300000000001,0.75574488378971461,"Sydvästra Indiska Oceanen",null,"Yu and Elderfield (2008)"]
["C. wuellerstorfi",1.1557599999999999,0.78484206826892755,"Sydvästra Indiska Oceanen",null,"Yu and Elderfield (2008)"]
["C. wuellerstorfi",1.1557599999999999,1.0524764918600809,"Sydvästra Indiska Oceanen",null,"Yu and Elderfield (2008)"]
["C. wuellerstorfi",0.97564799999999996,0.83674098662203689,"Sydvästra Indiska Oceanen",null,"Yu and Elderfield (2008)"]
["C. wuellerstorfi",1.25637,0.88346362756212304,"Sydvästra Indiska Oceanen",null,"Yu and Elderfield (2008)"]
["C. wuellerstorfi",1.25637,0.94991307820480453,"Sydvästra Indiska Oceanen",null,"Yu and Elderfield (2008)"]
["C. wuellerstorfi",1.06382,0.65129947452085146,"Sydvästra Indiska Oceanen",null,"Yu and Elderfield (2008)"]
["C. wuellerstorfi",1.06382,0.70592732318521556,"Sydvästra Indiska Oceanen",null,"Yu and Elderfield (2008)"]
["C. wuellerstorfi",1.86463,1.0165571218793743,"Sydvästra Indiska Oceanen",null,"Yu and Elderfield (2008)"]
["C. wuellerstorfi",1.86463,1.2561083673656579,"Sydvästra Indiska Oceanen",null,"Yu and Elderfield (2008)"]
["C. wuellerstorfi",2.2169400000000001,1.4211716063189139,"Sydvästra Indiska Oceanen",null,"Yu and Elderfield (2008)"]
["C. wuellerstorfi",1.0004900000000001,0.64933007085473538,"Sydvästra Indiska Oceanen",null,"Yu and Elderfield (2008)"]
["C. wuellerstorfi",1.14767,0.6795589316871431,"Sydvästra Indiska Oceanen",null,"Yu and Elderfield (2008)"]
["C. wuellerstorfi",1.14767,0.88347524622251683,"Sydvästra Indiska Oceanen",null,"Yu and Elderfield (2008)"]
["C. wuellerstorfi",1.4103699999999999,0.77836762007967653,"Sydvästra Indiska Oceanen",null,"Yu and Elderfield (2008)"]
["C. wuellerstorfi",1.2349399999999999,0.72051073528579468,"Sydvästra Indiska Oceanen",null,"Yu and Elderfield (2008)"]
["C. wuellerstorfi",1.0829500000000001,0.67519391636214388,"Sydvästra Indiska Oceanen",null,"Yu and Elderfield (2008)"]
["C. wuellerstorfi",1.52119,0.90043484074051039,"Sydvästra Indiska Oceanen",null,"Yu and Elderfield (2008)"]
["C. wuellerstorfi",1.5798099999999999,0.80733404362572625,"Sydvästra Indiska Oceanen",null,"Yu and Elderfield (2008)"]
["C. wuellerstorfi",1.70499,0.73342455500165427,"Sydvästra Indiska Oceanen",null,"Yu and Elderfield (2008)"]
["C. wuellerstorfi",1.70499,0.74631893718769482,"Sydvästra Indiska Oceanen",null,"Yu and Elderfield (2008)"]
["C. wuellerstorfi",1.5009699999999999,1.15117834398562,"Sydvästra Indiska Oceanen",null,"Yu and Elderfield (2008)"]
["C. wuellerstorfi",1.1946099999999999,0.79763273430617221,"Sydvästra Indiska Oceanen",null,"Yu and Elderfield (2008)"]
["C. wuellerstorfi",1.34537,0.59628530430956095,"Ontong Java Plateau",null,"Yu and Elderfield (2008)"]
["C. wuellerstorfi",1.6676500000000001,1.0895087354262578,"Ontong Java Plateau",null,"Yu and Elderfield (2008)"]
["C. wuellerstorfi",1.9299599999999999,1.1364309268314552,"Ontong Java Plateau",null,"Yu and Elderfield (2008)"]
["C. wuellerstorfi",1.4677,0.62042271272690253,"Ontong Java Plateau",null,"Yu and Elderfield (2008)"]
["C. wuellerstorfi",2.29914,1.1558365532318202,"Ontong Java Plateau",null,"Yu and Elderfield (2008)"]
["C. wuellerstorfi",2.2967900000000001,1.2132820920611145,"Ontong Java Plateau",null,"Yu and Elderfield (2008)"]
["C. wuellerstorfi",1.33704,0.53275151181397973,"Ontong Java Plateau",null,"Yu and Elderfield (2008)"]
["C. wuellerstorfi",1.33704,0.57714788247841931,"Ontong Java Plateau",null,"Yu and Elderfield (2008)"]
["C. wuellerstorfi",1.33704,0.55958019976054252,"Ontong Java Plateau",null,"Yu and Elderfield (2008)"]
["C. wuellerstorfi",1.34535,0.62820643828277201,"Ontong Java Plateau",null,"Yu and Elderfield (2008)"]
["C. wuellerstorfi",1.34535,0.59426760380097543,"Ontong Java Plateau",null,"Yu and Elderfield (2008)"]
["C. wuellerstorfi",2.2042799999999998,1.0755969295808923,"Ontong Java Plateau",null,"Yu and Elderfield (2008)"]
["C. wuellerstorfi",2.2042799999999998,1.1253103000346554,"Ontong Java Plateau",null,"Yu and Elderfield (2008)"]
["C. wuellerstorfi",2.2042799999999998,1.1618591942545244,"Ontong Java Plateau",null,"Yu and Elderfield (2008)"]
["C. wuellerstorfi",2.2042799999999998,1.1967687621340295,"Ontong Java Plateau",null,"Yu and Elderfield (2008)"]
["C. wuellerstorfi",2.2042799999999998,1.0318819234508867,"Ontong Java Plateau",null,"Yu and Elderfield (2008)"]
["C. wuellerstorfi",2.84944,1.2305714800651906,"Ontong Java Plateau",null,"Yu and Elderfield (2008)"]
["C. wuellerstorfi",2.84944,1.2580243779972313,"Ontong Java Plateau",null,"Yu and Elderfield (2008)"]
["C. wuellerstorfi",2.84944,1.2913591183867235,"Ontong Java Plateau",null,"Yu and Elderfield (2008)"]
["C. wuellerstorfi",2.8483700000000001,1.1369422678165286,"Ontong Java Plateau",null,"Yu and Elderfield (2008)"]
["C. wuellerstorfi",2.8483700000000001,1.2841253044752516,"Ontong Java Plateau",null,"Yu and Elderfield (2008)"]
["C. wuellerstorfi",2.8483700000000001,1.2550370691274628,"Ontong Java Plateau",null,"Yu and Elderfield (2008)"]
["C. wuellerstorfi",2.2031000000000001,1.054057880252337,"Ontong Java Plateau",null,"Yu and Elderfield (2008)"]
["C. wuellerstorfi",2.2031000000000001,1.0866115733879609,"Ontong Java Plateau",null,"Yu and Elderfield (2008)"]
["C. wuellerstorfi",1.9766900000000001,1.2922087549227852,"Ontong Java Plateau",null,"Yu and Elderfield (2008)"]
["C. wuellerstorfi",1.9766900000000001,0.98887769988365193,"Ontong Java Plateau",null,"Yu and Elderfield (2008)"]
["C. wuellerstorfi",1.6625300000000001,0.86568743789404301,"Ontong Java Plateau",null,"Yu and Elderfield (2008)"]
["C. wuellerstorfi",1.6623300000000001,0.97235099370628431,"Ontong Java Plateau",null,"Yu and Elderfield (2008)"]
["C. wuellerstorfi",1.53607,0.64694260193524256,"Ontong Java Plateau",null,"Yu and Elderfield (2008)"]
["C. wuellerstorfi",1.53607,0.78522585744657036,"Ontong Java Plateau",null,"Yu and Elderfield (2008)"]
["C. wuellerstorfi",1.53607,0.80516951850134644,"Ontong Java Plateau",null,"Yu and Elderfield (2008)"]
["C. wuellerstorfi",1.3423700000000001,0.54903276099641296,"Ontong Java Plateau",null,"Yu and Elderfield (2008)"]
["C. wuellerstorfi",1.3423700000000001,0.6836681783906724,"Ontong Java Plateau",null,"Yu and Elderfield (2008)"]
["C. wuellerstorfi",1.8840300000000001,1.0343889042443746,"Ontong Java Plateau",null,"Yu and Elderfield (2008)"]
["C. wuellerstorfi",1.8840300000000001,2.2240335597455525,"Ontong Java Plateau",null,"Yu and Elderfield (2008)"]
["C. wuellerstorfi",1.46889,0.73645323242360117,"Ontong Java Plateau",null,"Yu and Elderfield (2008)"]
["C. wuellerstorfi",1.46889,0.68506700342615712,"Ontong Java Plateau",null,"Yu and Elderfield (2008)"]
["M. barleeanum",-0.86,0.84,"Norska havet",null,"Hasenfratz et al (2017)"]
["M. barleeanum",-0.89,0.77,"Norska havet",null,"Hasenfratz et al (2017)"]
["M. barleeanum",-0.63,0.79,"Norska havet",null,"Hasenfratz et al (2017)"]
["M. barleeanum",-0.6,0.69,"Norska havet",null,"Hasenfratz et al (2017)"]
["M. barleeanum",-0.72,0.9,"Norska havet",null,"Hasenfratz et al (2017)"]
["M. barleeanum",-0.83,0.79,"Norska havet",null,"Hasenfratz et al (2017)"]
["M. barleeanum",-0.81,0.78,"Norska havet",null,"Hasenfratz et al (2017)"]
["M. barleeanum",-0.83,0.76,"Norska havet",null,"Hasenfratz et al (2017)"]
["M. barleeanum",-0.85,0.71,"Norska havet",null,"Hasenfratz et al (2017)"]
["M. barleeanum",-0.84,1.05,"Norska havet",null,"Hasenfratz et al (2017)"]
["M. barleeanum",-0.79,0.79,"Norska havet",null,"Hasenfratz et al (2017)"]
["M. barleeanum",-0.76,0.74,"Norska havet",null,"Hasenfratz et al (2017)"]
["M. barleeanum",-0.8,0.73,"Norska havet",null,"Hasenfratz et al (2017)"]
["M. barleeanum",-0.8,0.77,"Norska havet",null,"Hasenfratz et al (2017)"]
["M. barleeanum",-0.8,0.91,"Norska havet",null,"Hasenfratz et al (2017)"]
["M. barleeanum",-0.24,1,"Norska havet",null,"Hasenfratz et al (2017)"]
["M. barleeanum",-0.14000000000000001,0.98,"Norska havet",null,"Hasenfratz et al (2017)"]
["M. barleeanum",0.04,1.05,"Norska havet",null,"Hasenfratz et al (2017)"]
["M. barleeanum",-0.74,0.89,"Norska havet",null,"Hasenfratz et al (2017)"]
["M. barleeanum",-0.47,0.83,"Norska havet",null,"Hasenfratz et al (2017)"]
["M. barleeanum",-0.65,0.73,"Norska havet",null,"Hasenfratz et al (2017)"]
["M. barleeanum",-0.8,0.68,"Norska havet",null,"Hasenfratz et al (2017)"]
["M. barleeanum",0.7,0.76,"Norska havet",null,"Hasenfratz et al (2017)"]
["M. barleeanum",-0.74,0.74,"Norska havet",null,"Hasenfratz et al (2017)"]
["M. barleeanum",-0.35,0.96,"Norska havet",null,"Hasenfratz et al (2017)"]
["M. barleeanum",-0.32,0.89,"Norska havet",null,"Hasenfratz et al (2017)"]
["M. barleeanum",5.46,1.52,"Norska havet",null,"Hasenfratz et al (2017)"]
["M. barleeanum",2.77,1.35,"Norska havet",null,"Hasenfratz et al (2017)"]
["M. barleeanum",7.17,1.84,"Norska havet",null,"Hasenfratz et al (2017)"]
["M. barleeanum",7.85,1.77,"Norska havet",null,"Hasenfratz et al (2017)"]
["M. barleeanum",-0.49,0.77,"Norska havet",null,"Hasenfratz et al (2017)"]
["M. barleeanum",8.09,2.0499999999999998,"Norska havet",null,"Hasenfratz et al (2017)"]
["M. barleeanum",5.15,1.21,"Norska havet",null,"Hasenfratz et al (2017)"]
["M. barleeanum",5.7,1.18,"Norska havet",null,"Hasenfratz et al (2017)"]
["M. barleeanum",7.2,2.0299999999999998,"Oslofjorden",null,"Hasenfratz et al (2017)"]
["M. barleeanum",6.66,2,"Oslofjorden",null,"Hasenfratz et al (2017)"]
["M. barleeanum",0.88,1.79,"Oslofjorden",null,"Hasenfratz et al (2017)"]
["M. barleeanum",8.0299999999999994,2.16,"Oslofjorden",null,"Hasenfratz et al (2017)"]
["M. barleeanum",8.0299999999999994,3.43,"Oslofjorden",null,"Hasenfratz et al (2017)"]
["M. barleeanum",7.17,1.63,"Oslofjorden",null,"Hasenfratz et al (2017)"]
["M. barleeanum",7.17,1.53,"Oslofjorden",null,"Hasenfratz et al (2017)"]
["M. barleeanum",4.47,1.51,"Europas och Afrikas västkust",null,"Hasenfratz et al (2017)"]
["M. barleeanum",3.08,1.39,"Europas och Afrikas västkust",null,"Hasenfratz et al (2017)"]
["M. barleeanum",2.95,1.3,"Europas och Afrikas västkust",null,"Hasenfratz et al (2017)"]
["M. barleeanum",8.77,1.35,"Europas och Afrikas västkust",null,"Hasenfratz et al (2017)"]
["M. barleeanum",8.58,2.02,"Europas och Afrikas västkust",null,"Hasenfratz et al (2017)"]
["M. barleeanum",8.1300000000000008,1.82,"Europas och Afrikas västkust",null,"Hasenfratz et al (2017)"]
["M. barleeanum",7.26,1.69,"Europas och Afrikas västkust",null,"Hasenfratz et al (2017)"]
["M. barleeanum",2.08,1.18,"Europas och Afrikas västkust",null,"Hasenfratz et al (2017)"]
["M. barleeanum",1.8,1.1000000000000001,"Europas och Afrikas västkust",null,"Hasenfratz et al (2017)"]
["M. barleeanum",5.66,1.38,"Europas och Afrikas västkust",null,"Hasenfratz et al (2017)"]
["M. barleeanum",8.86,1.98,"Europas och Afrikas västkust",null,"Hasenfratz et al (2017)"]
["M. barleeanum",9.5399999999999991,1.79,"Europas och Afrikas västkust",null,"Hasenfratz et al (2017)"]
["M. barleeanum",10.95,2.25,"Europas och Afrikas västkust",null,"Hasenfratz et al (2017)"]
["M. barleeanum",10.95,2.09,"Europas och Afrikas västkust",null,"Hasenfratz et al (2017)"]
["M. barleeanum",2.5099999999999998,1.18,"Europas och Afrikas västkust",null,"Hasenfratz et al (2017)"]
["M. barleeanum",10.38,1.88,"Europas och Afrikas västkust",null,"Hasenfratz et al (2017)"]
["M. barleeanum",12.82,2.39,"Europas och Afrikas västkust",null,"Hasenfratz et al (2017)"]
["M. barleeanum",13.16,2.34,"Europas och Afrikas västkust",null,"Hasenfratz et al (2017)"]
["M. barleeanum",11.53,3.63,"Europas och Afrikas västkust",null,"Hasenfratz et al (2017)"]
["M. barleeanum",12.6,2.27,"Europas och Afrikas västkust",null,"Hasenfratz et al (2017)"]
["M. barleeanum",11.59,1.99,"Europas och Afrikas västkust",null,"Hasenfratz et al (2017)"]
["M. barleeanum",11.22,1.81,"Europas och Afrikas västkust",null,"Hasenfratz et al (2017)"]
["M. barleeanum",12.42,2.1800000000000002,"Europas och Afrikas västkust",null,"Hasenfratz et al (2017)"]
["M. barleeanum",12.05,1.96,"Europas och Afrikas västkust",null,"Hasenfratz et al (2017)"]
["M. barleeanum",12.12,2.13,"Europas och Afrikas västkust",null,"Hasenfratz et al (2017)"]
["M. barleeanum",11.59,2.19,"Europas och Afrikas västkust",null,"Hasenfratz et al (2017)"]
["M. barleeanum",11.59,2.2599999999999998,"Europas och Afrikas västkust",null,"Hasenfratz et al (2017)"]
["M. barleeanum",11.78,1.9,"Europas och Afrikas västkust",null,"Hasenfratz et al (2017)"]
["M. barleeanum",12.1,2.65,"Europas och Afrikas västkust",null,"Hasenfratz et al (2017)"]
["M. barleeanum",6.41,1.61,"Europas och Afrikas västkust",null,"Hasenfratz et al (2017)"]
["M. barleeanum",14.34,2.59,"Europas och Afrikas västkust",null,"Hasenfratz et al (2017)"]
["M. barleeanum",12.07,2.2599999999999998,"Europas och Afrikas västkust",null,"Hasenfratz et al (2017)"]
["M. barleeanum",10.4,2.12,"Europas och Afrikas västkust",null,"Hasenfratz et al (2017)"]
["M. barleeanum",13.43,2.56,"Europas och Afrikas västkust",null,"Hasenfratz et al (2017)"]
["M. barleeanum",14.46,2.33,"Europas och Afrikas västkust",null,"Hasenfratz et al (2017)"]
["M. barleeanum",15.43,2.33,"Europas och Afrikas västkust",null,"Hasenfratz et al (2017)"]
["M. barleeanum",15.58,2.4700000000000002,"Europas och Afrikas västkust",null,"Hasenfratz et al (2017)"]
["M. barleeanum",11.76,3.64,"Europas och Afrikas västkust",null,"Hasenfratz et al (2017)"]
["M. barleeanum",11.76,2.78,"Europas och Afrikas västkust",null,"Hasenfratz et al (2017)"]
["M. barleeanum",12.13,3.66,"Europas och Afrikas västkust",null,"Hasenfratz et al (2017)"]
["M. barleeanum",12.13,3.26,"Europas och Afrikas västkust",null,"Hasenfratz et al (2017)"]
["M. barleeanum",9.18,1.87,"Europas och Afrikas västkust",null,"Hasenfratz et al (2017)"]
["M. barleeanum",9.18,1.89,"Europas och Afrikas västkust",null,"Hasenfratz et al (2017)"]
["M. barleeanum",6.7,1.84,"Europas och Afrikas västkust",null,"Hasenfratz et al (2017)"]
["M. barleeanum",6.59,1.83,"Europas och Afrikas västkust",null,"Hasenfratz et al (2017)"]
["M. barleeanum",2.78,0.85,"Europas och Afrikas västkust",null,"Hasenfratz et al (2017)"]
["M. barleeanum",2.46,1.02,"Europas och Afrikas västkust",null,"Hasenfratz et al (2017)"]
["M. barleeanum",2.88,0.8,"Europas och Afrikas västkust",null,"Hasenfratz et al (2017)"]
["M. barleeanum",4.38,0.86,"Europas och Afrikas västkust",null,"Hasenfratz et al (2017)"]
["M. barleeanum",5.8,1.1299999999999999,"Europas och Afrikas västkust",null,"Hasenfratz et al (2017)"]
["M. barleeanum",3.52,0.94,"Europas och Afrikas västkust",null,"Hasenfratz et al (2017)"]
["M. barleeanum",5.84,1.05,"Europas och Afrikas västkust",null,"Hasenfratz et al (2017)"]
["M. barleeanum",8.9499999999999993,1.61,"Europas och Afrikas västkust",null,"Hasenfratz et al (2017)"]
["M. barleeanum",6.79,1.17,"Europas och Afrikas västkust",null,"Hasenfratz et al (2017)"]
["M. barleeanum",5.12,1.05,"Europas och Afrikas västkust",null,"Hasenfratz et al (2017)"]
["M. barleeanum",11.49,2.74,"Europas och Afrikas västkust",null,"Hasenfratz et al (2017)"]
["M. barleeanum",12.39,3.6,"Europas och Afrikas västkust",null,"Hasenfratz et al (2017)"]
["M. barleeanum",5.23,0.97,"Europas och Afrikas västkust",null,"Hasenfratz et al (2017)"]
["M. barleeanum",4.5599999999999996,0.94,"Europas och Afrikas västkust",null,"Hasenfratz et al (2017)"]
["M. barleeanum",4.43,0.9,"Europas och Afrikas västkust",null,"Hasenfratz et al (2017)"]
["M. barleeanum",3.5,0.68,"Europas och Afrikas västkust",null,"Hasenfratz et al (2017)"]
["M. barleeanum",2.9,0.75,"Europas och Afrikas västkust",null,"Hasenfratz et al (2017)"]
["M. barleeanum",10.83,2.2200000000000002,"Europas och Afrikas västkust",null,"Hasenfratz et al (2017)"]
["M. barleeanum",4.45,0.96,"Europas och Afrikas västkust",null,"Hasenfratz et al (2017)"]
["M. barleeanum",10.56,2.0099999999999998,"Europas och Afrikas västkust",null,"Hasenfratz et al (2017)"]
["M. barleeanum",7.98,1.87,"Europas och Afrikas västkust",null,"Hasenfratz et al (2017)"]
["M. barleeanum",8.06,1.45,"Europas och Afrikas västkust",null,"Hasenfratz et al (2017)"]
["M. barleeanum",5.9,1.05,"Europas och Afrikas västkust",null,"Hasenfratz et al (2017)"]
["M. barleeanum",6.12,1.0900000000000001,"Europas och Afrikas västkust",null,"Hasenfratz et al (2017)"]
["M. barleeanum",4.1100000000000003,0.91,"Europas och Afrikas västkust",null,"Hasenfratz et al (2017)"]
["M. barleeanum",5.34,0.94,"Europas och Afrikas västkust",null,"Hasenfratz et al (2017)"]
["M. barleeanum",6.02,1.36,"Europas och Afrikas västkust",null,"Hasenfratz et al (2017)"]
["M. barleeanum",3.2,0.74,"Europas och Afrikas västkust",null,"Hasenfratz et al (2017)"]
["M. barleeanum",4.5599999999999996,0.91,"Europas och Afrikas västkust",null,"Hasenfratz et al (2017)"]
["M. barleeanum",8.74,1.29,"Europas och Afrikas västkust",null,"Hasenfratz et al (2017)"]
["M. barleeanum",5.54,0.96,"Europas och Afrikas västkust",null,"Hasenfratz et al (2017)"]
["M. barleeanum",4.57,0.88,"Europas och Afrikas västkust",null,"Hasenfratz et al (2017)"]
["M. barleeanum",1.79,1.2,"Europas och Afrikas västkust",null,"Hasenfratz et al (2017)"]
["M. barleeanum",5.18,1.41,"Sulawesi marigins",null,"Hasenfratz et al (2017)"]
["M. barleeanum",4.72,1.56,"Sulawesi marigins",null,"Hasenfratz et al (2017)"]
["M. barleeanum",4.13,1.9,"Sulawesi marigins",null,"Hasenfratz et al (2017)"]
["M. barleeanum",6.03,1.637,"Nordislands kontinentalsockel",null,"Kristjánsdóttir et al (2007)"]
["M. barleeanum",6.03,1.6850000000000001,"Nordislands kontinentalsockel",null,"Kristjánsdóttir et al (2007)"]
["M. barleeanum",6.03,2.0699999999999998,"Nordislands kontinentalsockel",null,"Kristjánsdóttir et al (2007)"]
["M. barleeanum",6.04,1.7949999999999999,"Nordislands kontinentalsockel",null,"Kristjánsdóttir et al (2007)"]
["M. barleeanum",6.04,1.788,"Nordislands kontinentalsockel",null,"Kristjánsdóttir et al (2007)"]
["M. barleeanum",-0.24,0.77200000000000002,"Nordislands kontinentalsockel",null,"Kristjánsdóttir et al (2007)"]
["M. barleeanum",-7.0000000000000007E-2,0.66900000000000004,"Nordislands kontinentalsockel",null,"Kristjánsdóttir et al (2007)"]
["M. barleeanum",0.05,0.78200000000000003,"Nordislands kontinentalsockel",null,"Kristjánsdóttir et al (2007)"]
["M. barleeanum",0.21,0.70199999999999996,"Nordislands kontinentalsockel",null,"Kristjánsdóttir et al (2007)"]
["M. barleeanum",0.21,0.68600000000000005,"Nordislands kontinentalsockel",null,"Kristjánsdóttir et al (2007)"]
["M. barleeanum",0.22,0.71599999999999997,"Nordislands kontinentalsockel",null,"Kristjánsdóttir et al (2007)"]
["M. barleeanum",0.22,0.78500000000000003,"Nordislands kontinentalsockel",null,"Kristjánsdóttir et al (2007)"]
["M. barleeanum",5.52,0.89800000000000002,"Nordislands kontinentalsockel",null,"Kristjánsdóttir et al (2007)"]
["M. barleeanum",5.52,0.89900000000000002,"Nordislands kontinentalsockel",null,"Kristjánsdóttir et al (2007)"]
["M. barleeanum",2.04,0.76500000000000001,"Nordislands kontinentalsockel",null,"Kristjánsdóttir et al (2007)"]
["M. barleeanum",2.04,0.77200000000000002,"Nordislands kontinentalsockel",null,"Kristjánsdóttir et al (2007)"]
["M. barleeanum",6.25,1.87,"Nordislands kontinentalsockel",null,"Kristjánsdóttir et al (2007)"]
["M. barleeanum",6.25,2.0350000000000001,"Nordislands kontinentalsockel",null,"Kristjánsdóttir et al (2007)"]
["M. barleeanum",6.42,1.6479999999999999,"Nordislands kontinentalsockel",null,"Kristjánsdóttir et al (2007)"]
["M. barleeanum",6.42,1.6950000000000001,"Nordislands kontinentalsockel",null,"Kristjánsdóttir et al (2007)"]
["M. barleeanum",6.42,1.6040000000000001,"Nordislands kontinentalsockel",null,"Kristjánsdóttir et al (2007)"]
["M. barleeanum",6.42,1.6419999999999999,"Nordislands kontinentalsockel",null,"Kristjánsdóttir et al (2007)"]
["M. barleeanum",6.42,1.59,"Nordislands kontinentalsockel",null,"Kristjánsdóttir et al (2007)"]
["M. barleeanum",6.42,1.593,"Nordislands kontinentalsockel",null,"Kristjánsdóttir et al (2007)"]
["M. barleeanum",6.42,1.68,"Nordislands kontinentalsockel",null,"Kristjánsdóttir et al (2007)"]
["M. barleeanum",7.12,1.6160000000000001,"Nordislands kontinentalsockel",null,"Kristjánsdóttir et al (2007)"]
["M. barleeanum",7.12,2.214,"Nordislands kontinentalsockel",null,"Kristjánsdóttir et al (2007)"]
["M. barleeanum",7.12,1.7529999999999999,"Nordislands kontinentalsockel",null,"Kristjánsdóttir et al (2007)"]
["M. barleeanum",6.8,1.258,"Nordislands kontinentalsockel",null,"Kristjánsdóttir et al (2007)"]
["M. barleeanum",6.95,1.26,"Nordislands kontinentalsockel",null,"Kristjánsdóttir et al (2007)"]
["M. barleeanum",0.96,0.64400000000000002,"Nordislands kontinentalsockel",null,"Kristjánsdóttir et al (2007)"]
["M. pompilioides",2.5099999999999998,1.05,"Europas och Afrikas västkust",null,"Hasenfratz et al (2017)"]
["M. pompilioides",2.46,0.98,"Europas och Afrikas västkust",null,"Hasenfratz et al (2017)"]
["M. pompilioides",3.1,1.07,"Europas och Afrikas västkust",null,"Hasenfratz et al (2017)"]
["M. pompilioides",2.78,0.91,"Europas och Afrikas västkust",null,"Hasenfratz et al (2017)"]
["M. pompilioides",3.46,0.99,"Europas och Afrikas västkust",null,"Hasenfratz et al (2017)"]
["M. pompilioides",2.88,0.92,"Europas och Afrikas västkust",null,"Hasenfratz et al (2017)"]
["M. pompilioides",3.52,0.54,"Europas och Afrikas västkust",null,"Hasenfratz et al (2017)"]
["M. pompilioides",2.52,0.81,"Europas och Afrikas västkust",null,"Hasenfratz et al (2017)"]
["M. pompilioides",0.77,0.82,"Södra Stilla havet",null,"Hasenfratz et al (2017)"]
["N. labradorica",-1.82,1.1200000000000001,"Laptev Kontinentalsockel",null,"Barrientos et al (2018)"]
["N. labradorica",-1.66,1.3,"Chukchi Kontinentalsockel",null,"Barrientos et al (2018)"]
["N. labradorica",-0.9,1.25,"Chukchi Kontinentalsockel",null,"Barrientos et al (2018)"]
["N. labradorica",-0.9,1.1100000000000001,"Chukchi Kontinentalsockel",null,"Barrientos et al (2018)"]
["N. labradorica",-1.71,1.3,"Chukchi Kontinentalsockel",null,"Barrientos et al (2018)"]
["N. labradorica",-0.26,1.24,"Chukchi Kontinentalsockel",null,"Barrientos et al (2018)"]
["N. labradorica",-0.26,1.31,"Chukchi Kontinentalsockel",null,"Barrientos et al (2018)"]
["N. labradorica",2.37,1.5820000000000001,"Kongsfjorden, Svalbard ",null,"Skirbekk et al. (2016)"]
["N. labradorica",2.91,1.6919999999999999,"Kongsfjorden, Svalbard ",null,"Skirbekk et al. (2016)"]
["N. labradorica",2.95,1.569,"Kongsfjorden, Svalbard ",null,"Skirbekk et al. (2016)"]
["N. labradorica",2.64,1.6719999999999999,"Kongsfjorden, Svalbard ",null,"Skirbekk et al. (2016)"]
["N. labradorica",3.5,1.619,"Kongsfjorden, Svalbard ",null,"Skirbekk et al. (2016)"]
["N. labradorica",2.95,1.6180000000000001,"Kongsfjorden, Svalbard ",null,"Skirbekk et al. (2016)"]
["N. labradorica",3.5,1.69,"Kongsfjorden, Svalbard ",null,"Skirbekk et al. (2016)"]
["N. labradorica",3.38,1.6579999999999999,"Kongsfjorden, Svalbard ",null,"Skirbekk et al. (2016)"]
["N. labradorica",3.16,1.5880000000000001,"Kongsfjorden, Svalbard ",null,"Skirbekk et al. (2016)"]
["N. labradorica",3.9,1.694,"Kongsfjorden, Svalbard ",null,"Skirbekk et al. (2016)"]
["N. labradorica",2.84,1.5429999999999999,"Kongsfjorden, Svalbard ",null,"Skirbekk et al. (2016)"]
["N. labradorica",0.78,1.359,"Kongsfjorden, Svalbard ",null,"Skirbekk et al. (2016)"]
["O. umbonatus ",1.45,1.378947194141273,"Vema Channel",null,"Healey et al. (2008)"]
["O. umbonatus ",1.6,1.4341357428923858,"Vema Channel",null,"Healey et al. (2008)"]
["O. umbonatus ",2,1.5544264765562548,"Vema Channel",null,"Healey et al. (2008)"]
["O. umbonatus ",2.1,1.5582085629214319,"Vema Channel",null,"Healey et al. (2008)"]
["O. umbonatus ",2.41,1.8969959868140276,"Vema Channel",null,"Healey et al. (2008)"]
["O. umbonatus ",2.76,1.8239982248180566,"Vema Channel",null,"Healey et al. (2008)"]
["O. umbonatus ",2.88,2.5998809837362136,"Vema Channel",null,"Healey et al. (2008)"]
["O. umbonatus ",2.88,1.9352924944131096,"Vema Channel",null,"Healey et al. (2008)"]
["O. umbonatus ",2.76,2.1320000000000001,"Vema Channel",null,"Healey et al. (2008)"]
["O. umbonatus ",2.76,1.66,"Vema Channel",null,"Healey et al. (2008)"]
["O. umbonatus ",0.85,1.2542192724255696,"Vema Channel",null,"Healey et al. (2008)"]
["O. umbonatus ",1.5,1.3981673925285303,"Vema Channel",null,"Healey et al. (2008)"]
["O. umbonatus ",2.39,1.3400483156555878,"Vema Channel",null,"Healey et al. (2008)"]
["O. umbonatus ",2.79,2.1682644683813397,"Vema Channel",null,"Healey et al. (2008)"]
["O. umbonatus ",2.9,2.2768507176050754,"Vema Channel",null,"Healey et al. (2008)"]
["O. umbonatus ",2.88,1.8324237701396857,"Vema Channel",null,"Healey et al. (2008)"]
["O. umbonatus ",2.71,2.175512641651776,"Vema Channel",null,"Healey et al. (2008)"]
["O. umbonatus ",1.58,1.2789999999999999,"Sydöstra Indiska Oceanen",null,"Healey et al. (2008)"]
["O. umbonatus ",1.58,1.5409999999999999,"Sydöstra Indiska Oceanen",null,"Healey et al. (2008)"]
["O. umbonatus ",1.58,1.359,"Sydöstra Indiska Oceanen",null,"Healey et al. (2008)"]
["O. umbonatus ",1.3,1.4973499608025709,"Sydöstra Indiska Oceanen",null,"Healey et al. (2008)"]
["O. umbonatus ",3.7650999999999999,2.4792348650127796,"Södra Kinesiska havet",null,"Healey et al. (2008)"]
["O. umbonatus ",2.0150000000000001,1.7467323308549121,"Andra platser i Atlanten",null,"Healey et al. (2008)"]
["O. umbonatus ",2.0350000000000001,2.1246590215164241,"Andra platser i Atlanten",null,"Healey et al. (2008)"]
["O. umbonatus ",-0.8,1.42,"Norska havet",-0.1,"Lear et al. (2010)"]
["O. umbonatus ",-0.9,1.07,"Norska havet",-0.1,"Lear et al. (2010)"]
["O. umbonatus ",-0.9,1.07,"Norska havet",-0.1,"Lear et al. (2010)"]
["O. umbonatus ",-0.8,1.24,"Norska havet",-0.1,"Lear et al. (2010)"]
["O. umbonatus ",-0.8,1.1599999999999999,"Norska havet",-0.1,"Lear et al. (2010)"]
["O. umbonatus ",-0.8,1.22,"Norska havet",-0.1,"Lear et al. (2010)"]
["O. umbonatus ",-0.8,1.02,"Norska havet",-0.1,"Lear et al. (2010)"]
["O. umbonatus ",-0.8,1.01,"Norska havet",-0.1,"Lear et al. (2010)"]
["O. umbonatus ",-0.6,1.32,"Norska havet",-0.1,"Lear et al. (2010)"]
["O. umbonatus ",-0.6,1.34,"Norska havet",-0.1,"Lear et al. (2010)"]
["O. umbonatus ",-0.7,1.18,"Norska havet",-0.1,"Lear et al. (2010)"]
["O. umbonatus ",-0.8,1.49,"Norska havet",-0.1,"Lear et al. (2010)"]
["O. umbonatus ",-0.9,1.24,"Norska havet",-0.1,"Lear et al. (2010)"]
["O. umbonatus ",-0.8,1.1000000000000001,"Norska havet",-0.1,"Lear et al. (2010)"]
["O. umbonatus ",-0.8,1.17,"Norska havet",-0.1,"Lear et al. (2010)"]
["O. umbonatus ",-0.8,1.05,"Norska havet",-0.1,"Lear et al. (2010)"]
["O. umbonatus ",-0.8,1.03,"Norska havet",-0.1,"Lear et al. (2010)"]
["O. umbonatus ",6.06,{"$f":"B737-0.1","v":5.96},"Norra Brazilian Margin",-0.1,"Tisserand et al (2013)"]
["O. umbonatus ",6.06,5.96,"Norra Brazilian Margin",-0.1,"Tisserand et al (2013)"]
["O. umbonatus ",6.06,5.96,"Norra Brazilian Margin",-0.1,"Tisserand et al (2013)"]
["O. umbonatus ",6.06,5.96,"Norra Brazilian Margin",-0.1,"Tisserand et al (2013)"]
["O. umbonatus ",6.06,5.96,"Norra Brazilian Margin",-0.1,"Tisserand et al (2013)"]
["O. umbonatus ",4.92,4.82,"Norra Brazilian Margin",-0.1,"Tisserand et al (2013)"]
["O. umbonatus ",4.92,4.82,"Norra Brazilian Margin",-0.1,"Tisserand et al (2013)"]
["O. umbonatus ",4.6399999999999997,4.54,"Norra Brazilian Margin",-0.1,"Tisserand et al (2013)"]
["O. umbonatus ",4.3,4.2,"Norra Brazilian Margin",-0.1,"Tisserand et al (2013)"]
["O. umbonatus ",4.3,{"$f":"B746-0.1","v":4.2},"Norra Brazilian Margin",-0.1,"Tisserand et al (2013)"]
["Q. arctica",-0.22,20.263999999999999,"Östra Sibiriska Kontinentalsockeln",null,"Barrientos et al (2018)"]
["Q. arctica",0.52,41.850999999999999,"Östra Sibiriska Kontinentalsockeln",null,"Barrientos et al (2018)"]
["Q. arctica",-7.0000000000000007E-2,22.553000000000001,"Östra Sibiriska Kontinentalsockeln",null,"Barrientos et al (2018)"]
["Q. arctica",0.74,75.084999999999994,"Östra Sibiriska Kontinentalsockeln",null,"Barrientos et al (2018)"]
["Q. arctica",-0.1,74.22,"Östra Sibiriska Kontinentalsockeln",null,"Barrientos et al (2018)"]
["Q. arctica",0.91,53.741999999999997,"Östra Sibiriska Kontinentalsockeln",null,"Barrientos et al (2018)"]
["Q. arctica",0.69,71.180999999999997,"Östra Sibiriska Kontinentalsockeln",null,"Barrientos et al (2018)"]
["Q. arctica",0.02,22.707999999999998,"Östra Sibiriska Kontinentalsockeln",null,"Barrientos et al (2018)"]
["Q. arctica",0.53,69.775999999999996,"Östra Sibiriska Kontinentalsockeln",null,"Barrientos et al (2018)"]
["Q. arctica",0.43,74.947999999999993,"Östra Sibiriska Kontinentalsockeln",null,"Barrientos et al (2018)"]
["Q. arctica",-0.16,18.888999999999999,"Östra Sibiriska Kontinentalsockeln",null,"Barrientos et al (2018)"]
["Q. arctica",0.02,59.88,"Lomonosov Ridge",null,"Barrientos et al (2018)"]
["Q. arctica",-0.1,39.396999999999998,"Lomonosov Ridge",null,"Barrientos et al (2018)"]